Cogmind - Beta 14 @@@ ROGUE MODE // 2024.10.21 @ 21:17:45 Player: WazdakkaGutsmek Result: Destroyed by Y-45 Defender with Heavy Assault Rifle Performance ------------- Evolutions (0) 0 Regions Visited (4) 800 Robots Destroyed (22) 110 Value Destroyed (504) 504 Prototype IDs (5) 100 Alien Tech Used (0) 0 Bonus (-28) -28 TOTAL SCORE: 1486 Bonus ------- Follower Combat Kills 60 Friendly Fire -88 Cogmind --------- Core Integrity 0/250 Matter 255/300 Energy 100/100 System Corruption 0% Temperature Cool (27) Movement Walking (130) Location -8/Recycling Parts ------- > --- POWER (1) -------- (None) > --- PROPULSION (2) --- Titanium-Spiked Exoskeleton > --- UTILITY (2) ------ Armored Scrap Engine > --- WEAPON (2) ------- (None) > --- INVENTORY (5) ---- (None) Peak State ------------ > --- POWER ------------ Light Deuterium Engine > --- PROPULSION ------- Spiked Treads Spiked Treads > --- UTILITY ---------- Bomb Drone Bay > --- WEAPON ----------- Grenade Launcher Rocket Launcher > --- INVENTORY -------- Spiked Treads Improved Heat Sink Makeshift Kinetic Plating Subdweller Beam Cannon Subdweller Machine Gun [Rating: 25] Favorites ----------- Power Ion Engine Engine Ion Engine Propulsion Light Treads Treads Light Treads Leg Aluminum Leg Utility Bomb Drone Bay Device Bomb Drone Bay Storage Small Storage Unit Weapon Subdweller Beam Cannon Energy Gun Small Laser Energy Cannon Subdweller Beam Cannon Ballistic Gun Subdweller Machine Gun Launcher Rocket Launcher Build | -11 -10 -10 -10 -8 ------- Run | Yrd Mat Min Sub Rec Slots Evolved . | . . . . . Power . | . . . . . Propulsion . | . . . . . Utility . | . . . . . Weapon . | . . . . . Parts Attached 22 | . . 6 14 2 Power 3 | . . . 2 1 Engine 3 | . . . 2 1 Core . | . . . . . Reactor . | . . . . . Propulsion 5 | . . 2 3 . Treads 5 | . . 2 3 . Leg . | . . . . . Wheel . | . . . . . Hover . | . . . . . Flight . | . . . . . Utility 5 | . . 2 2 1 Device 5 | . . 2 2 1 Storage . | . . . . . Processor . | . . . . . Hackware . | . . . . . Protection . | . . . . . Artifact . | . . . . . Weapon 9 | . . 2 7 . Energy Gun 1 | . . 1 . . Energy Cannon 2 | . . . 2 . Ballistic Gun 2 | . . . 2 . Ballistic Cannon . | . . . . . Launcher 4 | . . 1 3 . Special Weapon . | . . . . . Impact Weapon . | . . . . . Slashing Weapon . | . . . . . Piercing Weapon . | . . . . . Special Melee Weapon . | . . . . . Unidentified Prototypes 3 | . . 2 . 1 Parts Lost 4 | . . . . 4 Power 2 | . . . . 2 Propulsion . | . . . . . Utility . | . . . . . Weapon 2 | . . . . 2 Highest Loss Streak 1 | . . . . 1 To Critical Strikes . | . . . . . Average Slot Usage (%) 78 | . 85 85 80 57 Engine 10 | . 14 14 10 5 Treads 22 | . . 18 28 13 Leg 4 | . 28 9 . 5 Device 12 | . . 10 13 14 Storage 1 | . 14 4 . . Energy Gun 7 | . 28 25 . . Energy Cannon 6 | . . . 11 . Ballistic Gun 6 | . . . 11 . Launcher 6 | . . 2 4 19 Peak Build Rating 25 | 6 6 19 24 25 Average Rating 18 | 6 6 15 19 23 On Entrance 12 | 6 6 6 19 23 Naked Turns . | . . . . . Heaviest Build 29 | 13 13 16 29 20 Greatest Support 40 | 20 20 40 40 40 Greatest Overweight (x) 2 | . . . . 2 Average Overweight (x) . | . . . . . Largest Inventory Capacity 8 | 8 8 8 5 5 Average Capacity 5 | 8 8 5 5 5 Most Carried 8 | 6 7 8 5 5 Average Carried 4 | 6 6 5 4 2 Final Capacity 8 | 8 8 5 5 5 Final Carried 7 | 6 7 5 5 . Scrap Engine Consumption 10 | . . . . 10 Constructs Created 1 | . . . . 1 Class Distribution -------------------- 85% | Mutant 8% | Scavenger-Mutant 6% | Construct Dominant Class ---------------- Mutant | -10/Materials Mutant | -10/Mines Mutant | -10/Subcaves Mutant | -8/Recycling Resources | -11 -10 -10 -10 -8 ----------- Run | Yrd Mat Min Sub Rec Matter Collected 843 | 200 . 80 273 290 Remotely . | . . . . . Salvage Created 539 | . 54 20 316 149 Parts 42 | . 10 5 21 6 Haulers Intercepted . | . . . . . Recyclers Shooed . | . . . . . Parts Field Recycled . | . . . . . Retrieved Matter . | . . . . . Parts Self-Destructed 9 | . . . 9 . Prevented . | . . . . . Kills | -11 -10 -10 -10 -8 ------- Run | Yrd Mat Min Sub Rec Combat Hostiles Destroyed 18 | . 3 3 10 2 Melee 1 | . . . . 1 Guns 7 | . 3 . 4 . Cannons 5 | . . . 5 . AOE 5 | . . 3 1 1 Classes Destroyed 6 | . 2 . 3 1 Operator 1 | . 1 . . . Turret 2 | . . . 2 . Swarmer 11 | . 3 3 5 . Subdweller 5 | . . . 5 . Scrapper 2 | . . . . 2 Zionite 1 | . . . 1 . Best Kill Streak 4 | . 4 3 3 1 Combat Bots Only 3 | . 3 3 3 1 Max Kills in Single Turn 3 | . 1 3 2 1 Gunslinging . | . . . . . Exploded 3 | . . 3 1 1 Melee 1 | . . . . 1 Uniques/NPCs Destroyed . | . . . . . Combat | -11 -10 -10 -10 -8 -------- Run | Yrd Mat Min Sub Rec Hostile Shots Fired 101 | . 15 5 43 38 Missed 30 | . 3 4 11 12 Damage Taken 1430 | . 99 6 601 724 Core 261 | . 17 . 117 127 Absorbed by Shields . | . . . . . Core Remaining (%) 100 | 100 . . . . Volleys Fired 50 | . 9 8 25 8 Largest 2 | . 2 2 2 2 Hottest 113 | . 80 90 113 63 Shots Fired 91 | . 18 12 50 11 Gun 58 | . 18 10 30 . Cannon 15 | . . . 15 . Launcher 18 | . . 2 5 11 Special . | . . . . . Kinetic 12 | . . . 12 . Thermal 52 | . 9 10 33 . Explosive 18 | . . 2 5 11 Electromagnetic 9 | . 9 . . . Robot Hit Streak 8 | . 2 3 8 6 Robot Miss Streak 6 | . 3 6 6 2 Penetration Max . | . . . . . Secondary Targets 1 | . 1 . . . Max Gunslinging Chain 1 | . 1 . . . Shots Hit Robots 46 | . 6 5 29 6 Core Hits 33 | . 4 5 19 5 Critical Kills 1 | . . . 1 . Critical Parts Destroyed . | . . . . . Critical Strikes 1 | . . . 1 . Meltdown 1 | . . . 1 . Melee Attacks . | . . . . . Impact . | . . . . . Slashing . | . . . . . Piercing . | . . . . . Sneak Attacks . | . . . . . Combat Hostiles . | . . . . . Follow-up Attacks . | . . . . . Damage Inflicted 1584 | . 101 159 861 463 Guns 408 | . 70 46 292 . Cannons 292 | . . . 292 . Explosions 863 | . 31 113 277 442 Melee . | . . . . . Ramming 21 | . . . . 21 Kinetic 142 | . . . 142 . Thermal 549 | . 61 46 442 . Explosive 832 | . . 113 277 442 Electromagnetic 40 | . 40 . . . Impact . | . . . . . Slashing . | . . . . . Piercing . | . . . . . Highest Corruption . | . . . . . Average Corruption . | . . . . . Corruption Purged . | . . . . . Corruption Blocked . | . . . . . Overload Shots . | . . . . . Overflow Damage 54 | . . . . 54 Projectiles . | . . . . . Explosions 54 | . . . . 54 Melee . | . . . . . Knockbacks . | . . . . . Impact . | . . . . . Kinetic . | . . . . . Secondary . | . . . . . Self-Inflicted Damage 102 | . . . 1 101 Shots 5 | . . . 1 4 Rammed 7 | . . . . 7 Targets Rammed 8 | . . . . 8 Kicked . | . . . . . Crushed 1 | . . . . 1 Highest Temperature 126 | . 126 60 12 45 Average Temperature 35 | . 55 21 5 25 Received Heat Transfer 273 | . . . 63 210 Siege Activations . | . . . . . Robots Corrupted . | . . . . . Combat Hostiles . | . . . . . Parts Fried . | . . . . . Impact Corruptions . | . . . . . Robots Melted 1 | . . . 1 . Combat Hostiles . | . . . . . Parts Melted 4 | . . . 3 1 Heat Transferred 1065 | . 125 124 816 . Parts Sabotaged . | . . . . . Parts Stolen . | . . . . . Parts Stripped . | . . . . . Power Chain Reactions 1 | . 1 . . . Alert | -11 -10 -10 -10 -8 ------- Run | Yrd Mat Min Sub Rec Peak Influence 193 | . 135 193 . 49 Initial 52 | . . 52 . . Average 61 | . 43 93 . 21 Maximum Alert Level . | . . . . . Low Security (%) 100 | 100 100 100 . 100 Level 1 . | . . . . . Level 2 . | . . . . . Level 3 . | . . . . . Level 4 . | . . . . . Level 5 . | . . . . . High Security . | . . . . . Max Security . | . . . . . Squads Dispatched . | . . . . . Investigation . | . . . . . Extermination . | . . . . . Reinforcement . | . . . . . Assault . | . . . . . Garrison . | . . . . . Intercept . | . . . . . Searches Triggered . | . . . . . Construction Impeded . | . . . . . Haulers Reinforced . | . . . . . Active Scanning Responses . | . . . . . Cargo Convoy Interrupts . | . . . . . Stealth | -11 -10 -10 -10 -8 --------- Run | Yrd Mat Min Sub Rec Distress Signals 1 | . 1 . . . Communications Jammed . | . . . . . Distress Signals . | . . . . . Times Spotted 34 | . 6 7 12 9 Peak Tracking Total 5 | . 3 3 3 5 Tactical Retreats 4 | . . . 1 3 Traps | -11 -10 -10 -10 -8 ------- Run | Yrd Mat Min Sub Rec Traps Triggered . | . . . . . Indirectly . | . . . . . Trap Hack Attempts . | . . . . . Triggered . | . . . . . Disarmed 6 | . 6 . . . Reprogrammed . | . . . . . Reused . | . . . . . Traps Extracted . | . . . . . Installed . | . . . . . Triggered 4 | . . . 4 . Machines | -11 -10 -10 -10 -8 ---------- Run | Yrd Mat Min Sub Rec Machines Disabled 6 | . 2 . 4 . Max in Single Turn 3 | . 1 . 3 . Machines Repaired . | . . . . . Machines Dismantled . | . . . . . Machines Sabotaged . | . . . . . Overloaded Fab Kills . | . . . . . Hacking | -11 -10 -10 -10 -8 --------- Run | Yrd Mat Min Sub Rec Machines Accessed 5 | . 2 1 . 2 Terminals 3 | . 2 . . 1 Fabricators . | . . . . . Repair Stations . | . . . . . Recycling Units . | . . . . . Scanalyzers . | . . . . . Garrison Access . | . . . . . Total Hacks 10 | . 6 1 . 3 Successful 6 | . 3 1 . 2 Failed 4 | . 3 . . 1 Catastrophic 1 | . . . . 1 Database Lockouts . | . . . . . Manual 5 | . 4 . . 1 Terminals 7 | . 6 . . 1 Fabricators . | . . . . . Repair Stations . | . . . . . Recycling Units . | . . . . . Scanalyzers . | . . . . . Garrison Access . | . . . . . Terminal Hacks 6 | . 3 1 . 2 Open Door 1 | . . 1 . . Branch Access Points 1 | . 1 . . . Disarm Traps 1 | . 1 . . . Hauler Manifests 1 | . 1 . . . Release Object 2 | . . . . 2 Fabricator Hacks . | . . . . . Repair Station Hacks . | . . . . . Recycling Unit Hacks . | . . . . . Scanalyzer . | . . . . . Garrison Access Hacks . | . . . . . Unauthorized Hacks . | . . . . . Terminals . | . . . . . Fabricators . | . . . . . Repair Stations . | . . . . . Recycling Units . | . . . . . Scanalyzers . | . . . . . Garrison Access . | . . . . . Data Cores Recovered 1 | . 1 . . . Used 1 | . 1 . . . Hacking Detections 2 | . 1 . . 1 Full Trace Events . | . . . . . Feedback Events . | . . . . . Feedback Blocked . | . . . . . Robot Schematics Acquired . | . . . . . Robots Built . | . . . . . Authchips . | . . . . . Time . | . . . . . Total Robot Build Rating . | . . . . . Part Schematics Acquired . | . . . . . Parts Built . | . . . . . Authchips . | . . . . . Time . | . . . . . Total Part Build Rating . | . . . . . Parts Repaired . | . . . . . Time . | . . . . . Parts Recycled . | . . . . . Recycled Matter . | . . . . . Retrieved Matter . | . . . . . Retrieved Components . | . . . . . Parts Scanalyzed . | . . . . . Part Schematics Acquired . | . . . . . Parts Damaged . | . . . . . Bothacking | -11 -10 -10 -10 -8 ------------ Run | Yrd Mat Min Sub Rec Used RIF Installer . | . . . . . Robots Hacked . | . . . . . Non-combat . | . . . . . Combat . | . . . . . Robot Hacks Applied . | . . . . . Relay Couplers Released . | . . . . . Fabnet Peak Effective % . | . . . . . Robots Rewired . | . . . . . Allies Hacked . | . . . . . Hacks Repelled . | . . . . . Allies | -11 -10 -10 -10 -8 -------- Run | Yrd Mat Min Sub Rec Total Allies 1 | . . 1 . . Largest Group 1 | . . 1 1 . Highest-Rated Group 31 | . . 31 31 . Highest-Rated Ally 31 | . . 31 31 . Total Orders 3 | . . 2 1 . STAY 1 | . . . 1 . RETURN 2 | . . 2 . . Ally Attacks 21 | . . 10 9 2 Total Damage 276 | . . 193 83 . Kills 2 | . . 2 . . Allies Corrupted . | . . . . . Allies Melted . | . . . . . Intel | -11 -10 -10 -10 -8 ------- Run | Yrd Mat Min Sub Rec Robot Analysis Total . | . . . . . Derelict Logs Recovered 1 | . . 1 . . Drone Launches 10 | . . 5 2 3 Drone Recoveries 5 | . . 5 . . Exploration | -11 -10 -10 -10 -8 ------------- Run | Yrd Mat Min Sub Rec Turns Passed 3269 | 3 135 731 1875 525 Spaces Moved 1752 | 3 90 458 867 334 Core 35 | . . . . 35 Treads 1306 | . . 300 867 139 Legs 411 | 3 90 158 . 160 Wheels . | . . . . . Hover . | . . . . . Flight . | . . . . . Fastest Speed 100 | 120 120 120 160 100 Average Speed 151 | 120 120 146 160 143 Slowest Speed 160 | 120 120 160 160 160 Overloaded Moves . | . . . . . Propulsion Burnouts . | . . . . . Robots Hopped . | . . . . . Cave-ins Triggered . | . . . . . Exploration Rate (%) 41 | 2 28 85 44 47 Regions Visited 4 Branch Regions 3 Pre-discovered Areas 2 | . . 1 1 . Known Exits Taken 1 | . 1 . . . Unknown Exits Taken 3 | 1 . 1 1 . Scrap Searched 1 | . . 1 . . Spaces Dug . | . . . . . Terrain Destroyed 150 | . 2 18 39 91 Melee . | . . . . . Projectile 2 | . . . 2 . AOE 148 | . 2 18 37 91 Terrain Rammed . | . . . . . Walls Destroyed . | . . . . . Machines Disabled . | . . . . . Actions | -11 -10 -10 -10 -8 --------- Run | Yrd Mat Min Sub Rec Total 2282 | 2 99 508 1307 366 Wait 417 | . . 27 388 2 Move 1748 | 2 89 457 866 334 Hop . | . . . . . Pick Up 7 | . 1 4 2 . Fast Attach 10 | . . 3 5 2 Attach 1 | . . 1 . . Detach . | . . . . . Swap 11 | . . 2 9 . Drop 26 | . . 6 12 8 Fire 50 | . 9 8 25 8 Melee . | . . . . . Ram . | . . . . . Kick . | . . . . . Crush 8 | . . . . 8 Escape Stasis . | . . . . . Rewire 4 | . . . . 4 Trap . | . . . . . Miscellaneous . | . . . . . Route ------- -11/Scrapyard -10/Materials -10/Mines (discovered 3 exits: [*Mat x2] / [*Sub]) -10/Subcaves (discovered 2 exits: [*Mat] / *Rec) -8/Recycling History --------- Turn | Location | Event 1 | -11/Scrapyard | Discovered new exit (range 0) 4 | -11/Scrapyard | Entered Materials 70 | -10/Materials | Identified exit to Mines 139 | -10/Materials | Entered Mines 142 | -10/Mines | Escorted by a lone wolf Derelict 162 | -10/Mines | Learned location of Storage (-8) 292 | -10/Mines | Learned Materials non-interactive machine intel 305 | -10/Mines | Build established: Mutant 308 | -10/Mines | Found a damaged Exp. Sensor Array with a note attached 310 | -10/Mines | Found Prototype Device 310 | -10/Mines | Identified Exp. Sensor Array 348 | -10/Mines | Found the Drone Emporium 355 | -10/Mines | Found Prototype Device 355 | -10/Mines | Identified Bomb Drone Bay 493 | -10/Mines | Received a Rocket Launcher from a helpful Derelict 561 | -10/Mines | Discovered new exit (range 9) 572 | -10/Mines | Joined a pair of Derelicts in attacking an 0b10 outpost 656 | -10/Mines | Discovered new exit (range 15) 859 | -10/Mines | Discovered new exit (range 8) 870 | -10/Mines | Entered Subcaves 870 | -10/Subcaves | Accompanied by 1 ally 878 | -10/Subcaves | Shifting Twisted Machinery released Sub. Beam Cannon 885 | -10/Subcaves | Shifting Twisted Machinery released Battle Cannon 1097 | -10/Subcaves | Shifting Twisted Machinery released Sub. Monowheel 1177 | -10/Subcaves | Discovered new exit (range 14) 1241 | -10/Subcaves | Shifting Twisted Machinery released Sub. Monowheel 1523 | -10/Subcaves | Discovered new exit (range 9) 2192 | -10/Subcaves | Shifting Twisted Machinery released Sub. Laser 2447 | -10/Subcaves | Learned location of Zion (-6) 2447 | -10/Subcaves | Met a Zionite searching for "candidates" 2450 | -10/Subcaves | Core integrity fell below 50% 2501 | -10/Subcaves | Lost 4 allies 2745 | -10/Subcaves | Entered Recycling 2899 | -8/Recycling | Scanned before Scraplab entrance 2907 | -8/Recycling | Angered Scraplab inhabitants 2966 | -8/Recycling | Found Prototype Device 2966 | -8/Recycling | Identified Scrap Engine 3175 | -8/Recycling | Core integrity fell below 20% 3270 | -8/Recycling | Destroyed by Y-45 Defender with Heavy Assault Rifle Last Messages --------------- 03072_ U-05 Engineer lays Concrete. 03074_ U-05 Engineer builds a Wall. 03077_ U-05 Engineer lays Concrete. 03078_ U-05 Engineer builds a Wall. 03080_ U-05 Engineer lays Concrete. 03083_ U-05 Engineer builds a Wall. 03084_ U-05 Engineer lays Concrete. 03085_ U-05 Engineer builds a Wall. 03134_ Connecting with Terminal... 03159_ Y-45 Defender springs to life. 03159_ G-47 Trooper springs to life. 03160_ L-31 Rogue springs to life. 03160_ Y-45 Defender springs to life. 03164_ Destroyed Aluminum Leg. 03166_ R-06 Scavenger destroyed. 03168_ Critical hit (Burn: +37). 03170_ The unstable cave ceiling collapses. 03170_ Rocket Launcher destroyed. 03270_ Arm. Scrap Engine consumes Lgt. Cannon. 03270_ Critical hit (Burn: +37). Map ----- +----------------------------------------------------+ | / % #???????????????????????????????? | | ## "#???????????????????????????????? | | # # #???????????????????????????????? | | # # & & #???????????????????????????????? | | # # #???????????????????????????????? | | # ############???????????????????????????????? | | ###?????????????????????????????????????????? | | #?????????????????????????????????????????? | | # #?????????????????????????????????????????? | | # ######???????????????#####????????????????? | | #+#### ##!! #??###??????????# [[#????????????????? | | # ####### !!### ##????????##[[[################## | | ############## # | | # # | | ####/###### # | | # ## | | # ## | | / ## ######### ## | | # ## #??????????# | | # ## #?########## ############# | | # ## #?# = # # #?# | | # ## ### # # #"" | | # / Y /!+ + #"Y | | # ## ###### ! # # #"" | | ###+####### #???# # # ### | | ??# ??????# ##???# l@ # +? #?# | | ??# ??????# #????# # #? #?# ##+# | | ??#????""?# #????# # #?? +? ???? | | ?????#"Y"## #????# ! # #??####+### ???? | | ???? #????########## #?????????# ???? | | ??? #?????????????# ?????????? ???? | | ### #?????????????# #?????????? ???? | | #????????????? #??????????? ???? | | "?????????????# #????????????????? | | Y?????????????# #????????????????? | | "?????????????# #????????????????? | | ??????????????# #????????????????? | | ???????????????? ?????????????????? | | ????????????????????????????????????? | | ### ????????????????????????????????????? | | ???+## ?????????????????????????????????????? | | ??????? ?????????????????????????????????????? | | ???????? ??????????????????????????????????????? | | ?????????????????????????????????????????????????? | | ?????????????????????????????????????????????????? | | ?????????????????????????????????????????????????? | | ?????????????????????????????????????????????????? | | ?????????????????????????????????????????????????? | | ?????????????????????????????????????????????????? | | ?????????????????????????????????????????????????? | +----------------------------------------------------+ Best States ------------- Heat Dissipation 25 Energy Generation 15 Energy Capacity 250 Matter Stores 300 Matter Capacity 300 Sight Range 16 Robot Scan Range 20 Terrain Scan Density 10 Evasion (%) 55 Recoil Reduction 2 Item Schematics ----------------- None Robot Schematics ------------------ None Fabricated ------------ Nothing Alien Tech Used ----------------- None Achievements -------------- None Challenges ------------ None Game ------ Seed SignalArcNukerbomber Manual? 0 Play Time 00:33:01 Cumulative 54.2 hours Start 2024.10.21 @ 21:02:13 End 2024.10.21 @ 21:17:45 Sessions 1 Manual Loads 0 Difficulty Rogue Special Mode None Game No. 54 Rogue 36 Adventurer 16 Explorer 2 Win Type - Total 1 Types 1/0/0/0/0/0/0/0/0 Lore% 13 Gallery% 41 Achievement% 35 Wizard Run 0 Options --------- Layout 2 ASCII 0 Keyboard 0 Movement Mouse Keybinds 1 Fullscreen 2 Font 24/Terminus Map View 50x44 Zoom Use 0% Tactical HUD 1 Map Filters NONE Filters NONE Steam X RUN: c409ab62-539e-4b8d-b0a7-1cd9017a9a8d